[Event "*** MasterClass Titled Tuesday Blitz"]
[Site "Chess.com"]
[Date "2017.07.04"]
[Round "1"]
[White "Alex_Molchanov"]
[Black "TeukkaSalama"]
[Result "1-0"]
[WhiteElo "2408"]
[BlackElo "2048"]
[TimeControl "180+2"]
[EndTime "13:08:18 PDT"]
[Termination "Alex_Molchanov won by checkmate"]

1. c4 {[%clk 0:03:01.5]} 1... e6 {[%clk 0:02:59.4]} 2. d4 {[%clk 0:03:01.2]}
2... d5 {[%clk 0:02:59.7]} 3. Nc3 {[%clk 0:03:01.6]} 3... Bb4 {[%clk 0:02:49.9]}
4. e3 {[%clk 0:02:57.6]} 4... Nf6 {[%clk 0:02:50.4]} 5. Ne2 {[%clk 0:02:57.9]}
5... O-O {[%clk 0:02:49.9]} 6. a3 {[%clk 0:02:58.5]} 6... Bxc3+ {[%clk
0:02:23.7]} 7. Nxc3 {[%clk 0:02:58.7]} 7... b6 {[%clk 0:02:17.8]} 8. Bd3 {[%clk
0:02:48]} 8... Bb7 {[%clk 0:02:13.6]} 9. O-O {[%clk 0:02:49.4]} 9... Nbd7 {[%clk
0:02:02.7]} 10. cxd5 {[%clk 0:02:36.8]} 10... Nxd5 {[%clk 0:02:03]} 11. e4
{[%clk 0:02:29.9]} 11... Nxc3 {[%clk 0:02:01.8]} 12. bxc3 {[%clk 0:02:31.8]}
12... e5 {[%clk 0:01:46.3]} 13. Be3 {[%clk 0:02:21.1]} 13... Re8 {[%clk
0:01:40.4]} 14. d5 {[%clk 0:02:18.3]} 14... Qe7 {[%clk 0:01:21]} 15. Bb5 {[%clk
0:02:12.9]} 15... Red8 {[%clk 0:01:02.6]} 16. Qg4 {[%clk 0:02:07.9]} 16... Nc5
{[%clk 0:00:53]} 17. Rfe1 {[%clk 0:02:06.9]} 17... Bc8 {[%clk 0:00:40.7]} 18.
Qg5 {[%clk 0:02:07.7]} 18... f6 {[%clk 0:00:35.6]} 19. Qh4 {[%clk 0:02:07.5]}
19... Bd7 {[%clk 0:00:33.7]} 20. Bf1 {[%clk 0:02:03.9]} 20... Be8 {[%clk
0:00:31.1]} 21. f3 {[%clk 0:02:02.2]} 21... Bg6 {[%clk 0:00:31]} 22. Qf2 {[%clk
0:01:47.9]} 22... Nb7 {[%clk 0:00:24.7]} 23. Ba6 {[%clk 0:01:40.9]} 23... Nd6
{[%clk 0:00:25.3]} 24. c4 {[%clk 0:01:40.3]} 24... Be8 {[%clk 0:00:24.8]} 25. c5
{[%clk 0:01:39.5]} 25... bxc5 {[%clk 0:00:20.5]} 26. Bxc5 {[%clk 0:01:41.4]}
26... Rab8 {[%clk 0:00:19]} 27. Bxa7 {[%clk 0:01:39.7]} 27... Ra8 {[%clk
0:00:19.7]} 28. Bf1 {[%clk 0:01:38.2]} 28... Bb5 {[%clk 0:00:19]} 29. Bc5 {[%clk
0:01:37]} 29... Qd7 {[%clk 0:00:18.3]} 30. Reb1 {[%clk 0:01:28]} 30... Bxf1
{[%clk 0:00:17]} 31. Qxf1 {[%clk 0:01:28.5]} 31... Ra4 {[%clk 0:00:17.1]} 32.
Rb3 {[%clk 0:01:16.7]} 32... Rda8 {[%clk 0:00:17.5]} 33. Rab1 {[%clk 0:01:17.5]}
33... Kf7 {[%clk 0:00:15.7]} 34. Qc1 {[%clk 0:00:46.7]} 34... Nc4 {[%clk
0:00:16.1]} 35. Rb7 {[%clk 0:00:39.9]} 35... Nxa3 {[%clk 0:00:13.8]} 36. Bxa3
{[%clk 0:00:40.5]} 36... Qe8 {[%clk 0:00:07.9]} 37. Qxc7+ {[%clk 0:00:38.8]}
37... Kg6 {[%clk 0:00:08.7]} 38. Qxg7+ {[%clk 0:00:39.7]} 38... Kh5 {[%clk
0:00:09.4]} 39. Qxh7+ {[%clk 0:00:39.3]} 39... Kg5 {[%clk 0:00:07]} 40. Bc1#
{[%clk 0:00:40.1]} 1-0

[Event "*** MasterClass Titled Tuesday Blitz"]
[Site "Chess.com"]
[Date "2017.07.04"]
[Round "1"]
[White "platy3"]
[Black "Colombiano07"]
[Result "0-1"]
[WhiteElo "2628"]
[BlackElo "2353"]
[TimeControl "180+2"]
[EndTime "13:08:28 PDT"]
[Termination "Colombiano07 won by checkmate"]

1. e4 {[%clk 0:03:01]} 1... e6 {[%clk 0:03:00.4]} 2. d4 {[%clk 0:03:00]} 2... d5
{[%clk 0:03:00.2]} 3. Nc3 {[%clk 0:02:58.8]} 3... Bb4 {[%clk 0:02:49.9]} 4. e5
{[%clk 0:02:59.2]} 4... c5 {[%clk 0:02:49.4]} 5. a3 {[%clk 0:02:59]} 5... Bxc3+
{[%clk 0:02:50.6]} 6. bxc3 {[%clk 0:03:00.9]} 6... Qa5 {[%clk 0:02:52.2]} 7. Bd2
{[%clk 0:03:01.3]} 7... Qa4 {[%clk 0:02:53.3]} 8. Qg4 {[%clk 0:03:02.5]} 8... g6
{[%clk 0:02:53.9]} 9. Nf3 {[%clk 0:03:01.7]} 9... b6 {[%clk 0:02:52.4]} 10. c4
{[%clk 0:02:56.9]} 10... Ne7 {[%clk 0:02:45.1]} 11. Bd3 {[%clk 0:02:52.6]} 11...
Ba6 {[%clk 0:02:42.8]} 12. dxc5 {[%clk 0:02:43.6]} 12... bxc5 {[%clk 0:02:42.9]}
13. Qh4 {[%clk 0:02:31.1]} 13... Bxc4 {[%clk 0:02:24.5]} 14. Qf6 {[%clk
0:02:27.3]} 14... Rg8 {[%clk 0:02:16.8]} 15. Ng5 {[%clk 0:02:25.5]} 15... Rf8
{[%clk 0:02:07.7]} 16. Nxh7 {[%clk 0:02:19.1]} 16... Nd7 {[%clk 0:02:06.1]} 17.
Qf4 {[%clk 0:02:15.1]} 17... Rh8 {[%clk 0:01:55.6]} 18. Nf6+ {[%clk 0:02:14.2]}
18... Nxf6 {[%clk 0:01:56.1]} 19. exf6 {[%clk 0:02:14.6]} 19... Nf5 {[%clk
0:01:49.2]} 20. Bxf5 {[%clk 0:01:52.3]} 20... gxf5 {[%clk 0:01:43.5]} 21. Qc7
{[%clk 0:01:52.6]} 21... Qd7 {[%clk 0:01:33.1]} 22. Qxc5 {[%clk 0:01:52.9]}
22... Rc8 {[%clk 0:01:30.5]} 23. Qd4 {[%clk 0:01:53.3]} 23... Rg8 {[%clk
0:01:21.6]} 24. Qh4 {[%clk 0:00:38.1]} 24... Qd6 {[%clk 0:01:12.3]} 25. Qf4
{[%clk 0:00:33.6]} 25... Qxf4 {[%clk 0:00:42.3]} 26. Bxf4 {[%clk 0:00:35.5]}
26... Rxg2 {[%clk 0:00:42.3]} 27. Bg3 {[%clk 0:00:35.4]} 27... Ba6 {[%clk
0:00:42.7]} 28. h4 {[%clk 0:00:25.4]} 28... Rxc2 {[%clk 0:00:42]} 29. h5 {[%clk
0:00:26.5]} 29... f4 {[%clk 0:00:36]} 30. Bh4 {[%clk 0:00:07.4]} 30... Kf8
{[%clk 0:00:29.1]} 31. Rb1 {[%clk 0:00:07.8]} 31... Kg8 {[%clk 0:00:29.7]} 32.
Rb8+ {[%clk 0:00:08.7]} 32... Kh7 {[%clk 0:00:30.8]} 33. Rb1 {[%clk 0:00:04.2]}
33... d4 {[%clk 0:00:24.3]} 34. Kd1 {[%clk 0:00:05]} 34... Ra2 {[%clk
0:00:22.7]} 35. Rh3 {[%clk 0:00:04.8]} 35... Rg1# {[%clk 0:00:22.6]} 0-1

[Event "*** MasterClass Titled Tuesday Blitz"]
[Site "Chess.com"]
[Date "2017.07.04"]
[Round "1"]
[White "Haykos"]
[Black "CookiesAndIceCream"]
[Result "1-0"]
[WhiteElo "2462"]
[BlackElo "2194"]
[TimeControl "180+2"]
[EndTime "13:08:30 PDT"]
[Termination "Haykos won by resignation"]

1. e4 {[%clk 0:02:57.3]} 1... e5 {[%clk 0:03:01.1]} 2. Nf3 {[%clk 0:02:58.2]}
2... Nc6 {[%clk 0:03:02.6]} 3. Bc4 {[%clk 0:02:57.5]} 3... Bc5 {[%clk
0:03:03.3]} 4. d3 {[%clk 0:02:58.8]} 4... Nf6 {[%clk 0:03:04.5]} 5. O-O {[%clk
0:02:56.4]} 5... d6 {[%clk 0:03:04.4]} 6. c3 {[%clk 0:02:56.9]} 6... a6 {[%clk
0:03:05.4]} 7. Bb3 {[%clk 0:02:57]} 7... Ba7 {[%clk 0:03:06.7]} 8. Nbd2 {[%clk
0:02:57.5]} 8... O-O {[%clk 0:03:05.2]} 9. Re1 {[%clk 0:02:58]} 9... Ng4 {[%clk
0:03:05.6]} 10. Re2 {[%clk 0:02:58.4]} 10... Kh8 {[%clk 0:03:04.2]} 11. h3
{[%clk 0:02:59]} 11... f5 {[%clk 0:03:01.2]} 12. exf5 {[%clk 0:02:22.4]} 12...
Nh6 {[%clk 0:02:56.2]} 13. Ne4 {[%clk 0:02:19.5]} 13... Nxf5 {[%clk 0:02:52.2]}
14. Bg5 {[%clk 0:02:11.9]} 14... Qd7 {[%clk 0:02:43.5]} 15. Kh2 {[%clk
0:02:11.2]} 15... d5 {[%clk 0:02:19.6]} 16. Ned2 {[%clk 0:02:11.4]} 16... h6
{[%clk 0:02:19.1]} 17. Nxe5 {[%clk 0:01:11]} 17... Nxe5 {[%clk 0:02:17.8]} 18.
Rxe5 {[%clk 0:01:12.4]} 18... hxg5 {[%clk 0:02:06.2]} 19. Qh5+ {[%clk
0:01:12.4]} 19... Nh6 {[%clk 0:02:06.7]} 20. Rxd5 {[%clk 0:01:12.2]} 20... Qe7
{[%clk 0:01:52.4]} 21. Ne4 {[%clk 0:00:55.7]} 21... g4 {[%clk 0:01:41]} 22. Re5
{[%clk 0:00:31.5]} 22... Qd8 {[%clk 0:01:29.1]} 23. Re1 {[%clk 0:00:22.1]} 23...
gxh3 {[%clk 0:01:26.7]} 24. Ng5 {[%clk 0:00:21.3]} 24... Qd6 {[%clk 0:01:20.4]}
25. d4 {[%clk 0:00:19.4]} 25... Bg4 {[%clk 0:01:09.3]} 26. Qh4 {[%clk
0:00:19.8]} 26... Qf6 {[%clk 0:00:57.9]} 27. f3 {[%clk 0:00:20.8]} 27... Qf4+
{[%clk 0:00:45.1]} 28. g3 {[%clk 0:00:20.2]} 28... Qf6 {[%clk 0:00:22.6]} 29.
fxg4 {[%clk 0:00:19.4]} 29... c6 {[%clk 0:00:19.7]} 30. Nf7+ {[%clk 0:00:19.3]}
30... Rxf7 {[%clk 0:00:19.7]} 31. Bxf7 {[%clk 0:00:17.6]} 31... Qxf7 {[%clk
0:00:21.1]} 32. g5 {[%clk 0:00:18.6]} 32... Rf8 {[%clk 0:00:15.6]} 33. gxh6
{[%clk 0:00:19]} 33... Qf2+ {[%clk 0:00:16.3]} 34. Kxh3 {[%clk 0:00:20.2]} 34...
g6 {[%clk 0:00:16.9]} 35. R5e2 {[%clk 0:00:18.8]} 35... Qf5+ {[%clk 0:00:16.6]}
36. Qg4 {[%clk 0:00:20.3]} 36... Qf6 {[%clk 0:00:16.6]} 37. Re6 {[%clk 0:00:21]}
37... Qf2 {[%clk 0:00:15.4]} 38. R1e2 {[%clk 0:00:21.3]} 38... Qf1+ {[%clk
0:00:16]} 39. Kh4 {[%clk 0:00:22.5]} 39... Qh1+ {[%clk 0:00:15.7]} 40. Kg5
{[%clk 0:00:23.8]} 40... Rf5+ {[%clk 0:00:15]} 41. Kxg6 {[%clk 0:00:25]} 1-0

[Event "*** MasterClass Titled Tuesday Blitz"]
[Site "Chess.com"]
[Date "2017.07.04"]
[Round "1"]
[White "Penguininja"]
[Black "AkshatChandra"]
[Result "0-1"]
[WhiteElo "2321"]
[BlackElo "2661"]
[TimeControl "180+2"]
[EndTime "13:08:34 PDT"]
[Termination "AkshatChandra won by resignation"]

1. d4 {[%clk 0:02:46.2]} 1... Nf6 {[%clk 0:02:59.4]} 2. c4 {[%clk 0:02:46.4]}
2... e6 {[%clk 0:03:00.2]} 3. g3 {[%clk 0:02:47.8]} 3... d5 {[%clk 0:02:57.4]}
4. Nf3 {[%clk 0:02:48.4]} 4... dxc4 {[%clk 0:02:56.9]} 5. Bg2 {[%clk 0:02:48.5]}
5... Nbd7 {[%clk 0:02:57]} 6. O-O {[%clk 0:02:44]} 6... c6 {[%clk 0:02:38.7]} 7.
Nfd2 {[%clk 0:02:36.5]} 7... Nb6 {[%clk 0:02:38.3]} 8. e3 {[%clk 0:02:33.7]}
8... Qc7 {[%clk 0:02:20.2]} 9. Qe2 {[%clk 0:02:01.2]} 9... e5 {[%clk 0:02:20.1]}
10. Nxc4 {[%clk 0:01:37.4]} 10... Nxc4 {[%clk 0:02:11.8]} 11. Qxc4 {[%clk
0:01:39.3]} 11... Be6 {[%clk 0:02:13]} 12. Qa4 {[%clk 0:01:30.8]} 12... exd4
{[%clk 0:02:08.2]} 13. Qxd4 {[%clk 0:01:32.7]} 13... Be7 {[%clk 0:02:04.9]} 14.
Nc3 {[%clk 0:01:31.5]} 14... O-O {[%clk 0:02:05.2]} 15. e4 {[%clk 0:01:23.6]}
15... Rfd8 {[%clk 0:02:05.4]} 16. Qa4 {[%clk 0:01:18.4]} 16... b5 {[%clk
0:01:51.7]} 17. Qc2 {[%clk 0:01:12.9]} 17... Rac8 {[%clk 0:01:42.5]} 18. Bf4
{[%clk 0:01:06.7]} 18... Qb6 {[%clk 0:01:42.4]} 19. Rfd1 {[%clk 0:01:03.1]}
19... Ng4 {[%clk 0:01:38.2]} 20. Rf1 {[%clk 0:00:19.1]} 20... g5 {[%clk
0:01:30.9]} 21. Bd2 {[%clk 0:00:19.4]} 21... Bc4 {[%clk 0:01:27.9]} 22. h3
{[%clk 0:00:14.2]} 22... Bd3 {[%clk 0:01:23.1]} 23. Qd1 {[%clk 0:00:13.8]} 23...
Bxf1 {[%clk 0:01:19.6]} 24. Qxg4 {[%clk 0:00:15.3]} 24... Bxg2 {[%clk
0:01:14.5]} 25. Bxg5 {[%clk 0:00:15.8]} 25... Bxh3 {[%clk 0:01:13.6]} 26. Qh4
{[%clk 0:00:11.7]} 26... Rd2 {[%clk 0:00:59.6]} 27. Nd1 {[%clk 0:00:09.2]} 27...
Rcd8 {[%clk 0:00:56.6]} 28. Bxe7 {[%clk 0:00:07.2]} 28... Rxd1+ {[%clk 0:00:57]}
29. Kh2 {[%clk 0:00:08.5]} 29... Qxf2+ {[%clk 0:00:45.5]} 30. Kxh3 {[%clk
0:00:09.8]} 30... Qf1+ {[%clk 0:00:46.6]} 31. Kg4 {[%clk 0:00:11]} 31... f5+
{[%clk 0:00:39]} 32. Kh5 {[%clk 0:00:04.7]} 32... Qf3+ {[%clk 0:00:36.6]} 33.
Kh6 {[%clk 0:00:06]} 33... R8d6+ {[%clk 0:00:16.9]} 34. Bf6 {[%clk 0:00:05.6]}
34... Qe3+ {[%clk 0:00:17.7]} 35. Kh5 {[%clk 0:00:05.8]} 35... Rxa1 {[%clk
0:00:18]} 36. e5 {[%clk 0:00:04.2]} 36... Rd4 {[%clk 0:00:14.5]} 37. Qg5+ {[%clk
0:00:04.9]} 37... Qxg5+ {[%clk 0:00:14.5]} 38. Kxg5 {[%clk 0:00:06.8]} 0-1

[Event "*** MasterClass Titled Tuesday Blitz"]
[Site "Chess.com"]
[Date "2017.07.04"]
[Round "1"]
[White "stuffings101"]
[Black "IMJonathanCarlstedt"]
[Result "0-1"]
[WhiteElo "2195"]
[BlackElo "2467"]
[TimeControl "180+2"]
[EndTime "13:08:40 PDT"]
[Termination "IMJonathanCarlstedt won on time"]

1. Nf3 {[%clk 0:02:57.7]} 1... d5 {[%clk 0:02:44.9]} 2. g3 {[%clk 0:02:58.4]}
2... Nf6 {[%clk 0:02:26.3]} 3. Bg2 {[%clk 0:02:57.9]} 3... Bg4 {[%clk 0:02:20]}
4. O-O {[%clk 0:02:58.2]} 4... Nbd7 {[%clk 0:02:20.8]} 5. d3 {[%clk 0:02:58.9]}
5... e5 {[%clk 0:02:22.1]} 6. Nbd2 {[%clk 0:02:58.2]} 6... Bd6 {[%clk
0:02:23.1]} 7. e4 {[%clk 0:02:58.5]} 7... c6 {[%clk 0:02:24.4]} 8. h3 {[%clk
0:02:58.8]} 8... Bxf3 {[%clk 0:02:24.9]} 9. Qxf3 {[%clk 0:02:56.7]} 9... O-O
{[%clk 0:02:26.3]} 10. exd5 {[%clk 0:02:50.3]} 10... cxd5 {[%clk 0:02:26.4]} 11.
c4 {[%clk 0:02:51.6]} 11... d4 {[%clk 0:02:25.9]} 12. Qxb7 {[%clk 0:02:45.3]}
12... Rb8 {[%clk 0:02:26.3]} 13. Qc6 {[%clk 0:02:33.9]} 13... Nc5 {[%clk
0:02:26]} 14. Qf3 {[%clk 0:02:27.3]} 14... a5 {[%clk 0:02:26.5]} 15. Re1 {[%clk
0:02:22.8]} 15... a4 {[%clk 0:02:26.3]} 16. Rb1 {[%clk 0:02:19.2]} 16... Re8
{[%clk 0:02:24.1]} 17. b4 {[%clk 0:02:15.4]} 17... axb3 {[%clk 0:02:24.5]} 18.
axb3 {[%clk 0:02:16]} 18... Qa5 {[%clk 0:02:17.8]} 19. Qe2 {[%clk 0:02:02.2]}
19... Qc3 {[%clk 0:02:14.1]} 20. Bf1 {[%clk 0:01:54.1]} 20... h5 {[%clk
0:01:49.9]} 21. Bb2 {[%clk 0:01:50.4]} 21... Qb4 {[%clk 0:01:50.2]} 22. Bg2
{[%clk 0:01:39.4]} 22... Nxb3 {[%clk 0:01:47.2]} 23. Nxb3 {[%clk 0:01:38.6]}
23... Qxb3 {[%clk 0:01:48.4]} 24. Bc6 {[%clk 0:01:14.1]} 24... Re7 {[%clk
0:01:41.6]} 25. Bb5 {[%clk 0:01:13.8]} 25... e4 {[%clk 0:01:09.1]} 26. Bxd4
{[%clk 0:01:11.4]} 26... exd3 {[%clk 0:00:53.8]} 27. Qd2 {[%clk 0:00:49.1]}
27... Rxe1+ {[%clk 0:00:52.6]} 28. Qxe1 {[%clk 0:00:48.9]} 28... d2 {[%clk
0:00:51.8]} 29. Qd1 {[%clk 0:00:44.9]} 29... Qd3 {[%clk 0:00:45.5]} 30. Bxf6
{[%clk 0:00:43.7]} 30... gxf6 {[%clk 0:00:45.1]} 31. Rb3 {[%clk 0:00:42.6]}
31... Qd4 {[%clk 0:00:39.8]} 32. Kg2 {[%clk 0:00:38.7]} 32... Bc5 {[%clk
0:00:39.4]} 33. Re3 {[%clk 0:00:38]} 33... Ra8 {[%clk 0:00:36.3]} 34. Re2 {[%clk
0:00:27.6]} 34... Bb4 {[%clk 0:00:36.5]} 35. Ba4 {[%clk 0:00:18.8]} 35... Rxa4
{[%clk 0:00:32.9]} 36. Re8+ {[%clk 0:00:19.1]} 36... Kg7 {[%clk 0:00:31.8]} 37.
Qxh5 {[%clk 0:00:17.4]} 37... Bf8 {[%clk 0:00:22]} 0-1

[Event "*** MasterClass Titled Tuesday Blitz"]
[Site "Chess.com"]
[Date "2017.07.04"]
[Round "1"]
[White "Kawhi_Leonard2"]
[Black "caraguru"]
[Result "0-1"]
[WhiteElo "2136"]
[BlackElo "2440"]
[TimeControl "180+2"]
[EndTime "13:08:42 PDT"]
[Termination "caraguru won by checkmate"]

1. e4 {[%clk 0:03:01.9]} 1... c6 {[%clk 0:02:59.9]} 2. d4 {[%clk 0:03:01.4]}
2... d5 {[%clk 0:03:01.8]} 3. Nc3 {[%clk 0:03:02.4]} 3... dxe4 {[%clk
0:03:02.6]} 4. Nxe4 {[%clk 0:03:03.5]} 4... Bf5 {[%clk 0:03:04.2]} 5. Ng3 {[%clk
0:03:04.6]} 5... Bg6 {[%clk 0:03:05.1]} 6. h4 {[%clk 0:03:06.3]} 6... h6 {[%clk
0:03:05.6]} 7. Nf3 {[%clk 0:03:07.9]} 7... e6 {[%clk 0:03:06.5]} 8. Ne5 {[%clk
0:03:06.7]} 8... Bh7 {[%clk 0:03:07.2]} 9. Bd3 {[%clk 0:03:07.1]} 9... Bxd3
{[%clk 0:03:07.5]} 10. Qxd3 {[%clk 0:03:07.5]} 10... Nd7 {[%clk 0:03:08.8]} 11.
f4 {[%clk 0:03:07.6]} 11... Be7 {[%clk 0:03:05.3]} 12. Bd2 {[%clk 0:02:27.8]}
12... Bxh4 {[%clk 0:03:04.3]} 13. Nxd7 {[%clk 0:02:27.7]} 13... Kxd7 {[%clk
0:02:36.6]} 14. O-O-O {[%clk 0:02:24.3]} 14... Bxg3 {[%clk 0:02:21.8]} 15. Qxg3
{[%clk 0:02:24.2]} 15... Qf6 {[%clk 0:02:20.3]} 16. c4 {[%clk 0:02:21.9]} 16...
Ne7 {[%clk 0:02:19.6]} 17. Bc3 {[%clk 0:02:17]} 17... Qg6 {[%clk 0:02:10.2]} 18.
Qf3 {[%clk 0:02:13.8]} 18... h5 {[%clk 0:01:53.9]} 19. Rhe1 {[%clk 0:01:49.1]}
19... Rae8 {[%clk 0:01:46.8]} 20. Bb4 {[%clk 0:01:48]} 20... Nc8 {[%clk
0:01:29]} 21. d5 {[%clk 0:01:42.1]} 21... exd5 {[%clk 0:01:29.6]} 22. cxd5
{[%clk 0:01:43.3]} 22... c5 {[%clk 0:01:21.4]} 23. Bxc5 {[%clk 0:01:34.8]} 23...
Rxe1 {[%clk 0:01:17.3]} 24. Rxe1 {[%clk 0:01:34.9]} 24... Re8 {[%clk 0:01:18.7]}
25. Rxe8 {[%clk 0:01:14.9]} 25... Kxe8 {[%clk 0:01:20.6]} 26. Qe2+ {[%clk
0:01:01]} 26... Kd8 {[%clk 0:01:13.3]} 27. b3 {[%clk 0:00:34.8]} 27... Nd6
{[%clk 0:01:04.2]} 28. Qe5 {[%clk 0:00:29.1]} 28... Kd7 {[%clk 0:00:55.2]} 29.
Bxa7 {[%clk 0:00:20.8]} 29... Qd3 {[%clk 0:00:48.3]} 30. Bc5 {[%clk 0:00:16.6]}
30... Nc8 {[%clk 0:00:24.5]} 31. Kb2 {[%clk 0:00:08.7]} 31... Qd2+ {[%clk
0:00:22.9]} 32. Kb1 {[%clk 0:00:07.5]} 32... Qd1+ {[%clk 0:00:21.8]} 33. Kb2
{[%clk 0:00:08.3]} 33... Qd2+ {[%clk 0:00:21.6]} 34. Kb1 {[%clk 0:00:09.7]}
34... b6 {[%clk 0:00:19.3]} 35. Bd4 {[%clk 0:00:09.7]} 35... Qd1+ {[%clk
0:00:17]} 36. Kb2 {[%clk 0:00:10.4]} 36... Qd2+ {[%clk 0:00:17.6]} 37. Kb1
{[%clk 0:00:11.8]} 37... Nd6 {[%clk 0:00:17.6]} 38. Bxb6 {[%clk 0:00:11.8]}
38... Qd1+ {[%clk 0:00:14.3]} 39. Kb2 {[%clk 0:00:12.5]} 39... Qd2+ {[%clk
0:00:13.9]} 40. Ka1 {[%clk 0:00:13.6]} 40... Qc1# {[%clk 0:00:13.9]} 0-1

[Event "*** MasterClass Titled Tuesday Blitz"]
[Site "Chess.com"]
[Date "2017.07.04"]
[Round "1"]
[White "Lord_Neezy"]
[Black "162a54f5d"]
[Result "1/2-1/2"]
[WhiteElo "2162"]
[BlackElo "2437"]
[TimeControl "180+2"]
[EndTime "13:08:43 PDT"]
[Termination "Game drawn by repetition"]

1. d4 {[%clk 0:03:01.9]} 1... d5 {[%clk 0:02:37.7]} 2. Bf4 {[%clk 0:03:03.3]}
2... Nf6 {[%clk 0:02:36.5]} 3. e3 {[%clk 0:03:04.6]} 3... g6 {[%clk 0:02:36.1]}
4. h3 {[%clk 0:03:04.6]} 4... Bg7 {[%clk 0:02:37]} 5. Nf3 {[%clk 0:03:04.9]}
5... O-O {[%clk 0:02:38.1]} 6. Be2 {[%clk 0:03:06.4]} 6... b6 {[%clk 0:02:38.4]}
7. O-O {[%clk 0:03:07.5]} 7... Bb7 {[%clk 0:02:39.8]} 8. a4 {[%clk 0:03:07.5]}
8... a5 {[%clk 0:02:37]} 9. Nbd2 {[%clk 0:03:04.3]} 9... Na6 {[%clk 0:02:36.5]}
10. Rc1 {[%clk 0:03:03.4]} 10... c5 {[%clk 0:02:31.6]} 11. c3 {[%clk 0:03:00.4]}
11... c4 {[%clk 0:02:32.2]} 12. b3 {[%clk 0:02:59.8]} 12... cxb3 {[%clk
0:02:29.9]} 13. Qxb3 {[%clk 0:03:01.7]} 13... Nd7 {[%clk 0:02:26.8]} 14. Rb1
{[%clk 0:02:56.7]} 14... Rc8 {[%clk 0:02:24.8]} 15. Rfc1 {[%clk 0:02:57]} 15...
Re8 {[%clk 0:02:21.7]} 16. Bxa6 {[%clk 0:02:55.3]} 16... Bxa6 {[%clk 0:02:22.2]}
17. Qxd5 {[%clk 0:02:57.2]} 17... Bd3 {[%clk 0:02:18.7]} 18. Rb2 {[%clk
0:02:52.4]} 18... e6 {[%clk 0:02:19.1]} 19. Qb3 {[%clk 0:02:49]} 19... Ba6
{[%clk 0:02:19.5]} 20. Ne4 {[%clk 0:02:41.3]} 20... Bf8 {[%clk 0:02:15.9]} 21.
Nd6 {[%clk 0:02:40.5]} 21... Bxd6 {[%clk 0:02:16.4]} 22. Bxd6 {[%clk 0:02:42.4]}
22... Rc6 {[%clk 0:02:16.6]} 23. Bf4 {[%clk 0:02:35.3]} 23... Bc4 {[%clk
0:02:17.1]} 24. Qa3 {[%clk 0:02:33.5]} 24... Qc8 {[%clk 0:02:12.4]} 25. Nd2
{[%clk 0:02:23.5]} 25... Ba6 {[%clk 0:02:06]} 26. Ne4 {[%clk 0:02:24.2]} 26...
Qa8 {[%clk 0:01:59.1]} 27. Nd6 {[%clk 0:02:00.1]} 27... Rd8 {[%clk 0:01:56.8]}
28. Nb5 {[%clk 0:01:59.6]} 28... Bxb5 {[%clk 0:01:53.7]} 29. Rxb5 {[%clk
0:02:01.5]} 29... Rdc8 {[%clk 0:01:54.3]} 30. Qe7 {[%clk 0:01:54.7]} 30... Qb7
{[%clk 0:01:53.1]} 31. Rb3 {[%clk 0:01:50.3]} 31... Rc4 {[%clk 0:01:51.6]} 32.
Rcb1 {[%clk 0:01:37.2]} 32... Qc6 {[%clk 0:01:51.7]} 33. Bh6 {[%clk 0:01:31.1]}
33... Rxa4 {[%clk 0:01:49.8]} 34. Rxb6 {[%clk 0:01:28.3]} 34... Qxc3 {[%clk
0:01:23.3]} 35. Qxd7 {[%clk 0:01:25.6]} 35... Ra1 {[%clk 0:01:24.1]} 36. Qxc8+
{[%clk 0:01:20.5]} 36... Qxc8 {[%clk 0:01:22.8]} 37. Rxa1 {[%clk 0:01:22.4]}
37... f5 {[%clk 0:01:19.1]} 38. Rxa5 {[%clk 0:01:19.3]} 38... Qc1+ {[%clk
0:01:17.7]} 39. Kh2 {[%clk 0:01:14.6]} 39... Qc7+ {[%clk 0:01:19.2]} 40. Bf4
{[%clk 0:01:07.5]} 40... Qxb6 {[%clk 0:01:20.2]} 41. Re5 {[%clk 0:01:01.4]}
41... Kf7 {[%clk 0:01:20.1]} 42. h4 {[%clk 0:01:02.5]} 42... Qd8 {[%clk
0:01:19.6]} 43. Bg5 {[%clk 0:01:00.2]} 43... Qf8 {[%clk 0:01:20.8]} 44. Rc5
{[%clk 0:01:01.1]} 44... h6 {[%clk 0:01:17.7]} 45. Rc7+ {[%clk 0:00:57.9]} 45...
Kg8 {[%clk 0:01:18.4]} 46. Bf4 {[%clk 0:00:54.4]} 46... g5 {[%clk 0:01:18.5]}
47. hxg5 {[%clk 0:00:47.3]} 47... hxg5 {[%clk 0:01:19.5]} 48. Bxg5 {[%clk
0:00:49.1]} 48... Qd6+ {[%clk 0:01:20.6]} 49. Bf4 {[%clk 0:00:49.8]} 49... Qd8
{[%clk 0:01:21.8]} 50. Rb7 {[%clk 0:00:45.8]} 50... Qh4+ {[%clk 0:01:19.8]} 51.
Kg1 {[%clk 0:00:46.7]} 51... Qg4 {[%clk 0:01:21]} 52. f3 {[%clk 0:00:36.6]}
52... Qh4 {[%clk 0:01:20.1]} 53. Rb1 {[%clk 0:00:28.6]} 53... Kf7 {[%clk
0:01:19.1]} 54. Rb8 {[%clk 0:00:18.9]} 54... Qe1+ {[%clk 0:01:14.1]} 55. Kh2
{[%clk 0:00:19.8]} 55... Qh4+ {[%clk 0:01:15.6]} 56. Kg1 {[%clk 0:00:21.2]}
56... Qe1+ {[%clk 0:01:17.5]} 57. Kh2 {[%clk 0:00:22.6]} 57... Qh4+ {[%clk
0:01:19.4]} 58. Kg1 {[%clk 0:00:24]} 58... Qe1+ {[%clk 0:01:20.1]} 59. Kh2
{[%clk 0:00:25.3]} 59... Qh4+ {[%clk 0:01:22]} 60. Kg1 {[%clk 0:00:26.5]} 60...
Qe1+ {[%clk 0:01:23.8]} 61. Kh2 {[%clk 0:00:27.5]} 61... Qh4+ {[%clk 0:01:25.7]}
62. Kg1 {[%clk 0:00:28.7]} 1/2-1/2